fUST/lending_fUST_20240612
["ID","MTS","AMOUNT","RATE_DAILY","PERIOD"]
[329267951,1718206246395,-153.0,0.00017728,2]
[329267952,1718206246407,-153.0,0.00017728,2]
[329267954,1718206246419,-153.0,0.00017728,2]
[329267956,1718206246431,-185.3492131,0.00017728,2]
[329267958,1718206246442,-153.0,0.00017728,2]
[329267959,1718206246453,-153.0,0.00017728,2]
[329267962,1718206246464,-542.79544123,0.00017806,2]
[329267963,1718206246474,-500.0,0.00017806,2]
[329267965,1718206246484,-549.43756291,0.00017806,2]
[329267967,1718206246494,-500.0,0.00017806,2]
[329267969,1718206246504,-500.0,0.00017806,2]
[329267971,1718206246514,-500.0,0.00017806,2]
[329267973,1718206246524,-695.41,0.00017806,2]
[329267976,1718206246534,-665.41,0.00017806,2]
[329267979,1718206246544,-500.0,0.00017806,2]
[329267982,1718206246557,-1164.09,0.00017806,2]
[329267983,1718206246568,-699.97,0.00017806,2]
[329267986,1718206246580,-2132.65,0.00017806,2]
[329267988,1718206246592,-1144.97,0.00017806,2]
[329267990,1718206246602,-500.0,0.00017806,2]
[329267992,1718206246614,-500.0,0.00017806,2]
[329267994,1718206246625,-500.0,0.00017806,2]
[329267996,1718206246636,-500.0,0.00017807,2]
[329267998,1718206246647,-379.93796078,0.00017807,2]
[329268000,1718206246659,-500.0,0.00017807,4]
[329268002,1718206246670,-3181.85,0.00017807,2]
[329268004,1718206246681,-500.0,0.00017807,2]
[329268006,1718206246692,-500.0,0.00017807,2]
[329268008,1718206246703,-500.0,0.00017808,2]
[329268010,1718206246714,-500.0,0.00017808,2]
[329268012,1718206246727,-500.0,0.00017808,2]
[329268014,1718206246740,-500.0,0.00017808,2]
[329268016,1718206246750,-772.3,0.00017808,2]
[329268018,1718206246761,-506.9,0.00017808,2]
[329268020,1718206246772,-5607.12,0.00017808,2]
[329268022,1718206246783,-503.71,0.00017808,2]
[329268024,1718206246794,-500.0,0.00017808,2]
[329268026,1718206246807,-7300.26,0.00017808,2]
[329268028,1718206246817,-500.0,0.00017808,2]
[329268030,1718206246827,-1170.2,0.00017808,2]
[329268032,1718206246837,-2295.26,0.00017808,2]
[329268034,1718206246851,-602.4,0.00017894,2]
[329268036,1718206246862,-152.9,0.00017894,2]
[329268038,1718206246873,-6380.13898141,0.00018,2]
[329268040,1718206246884,-154.9690062,0.00018,2]
[329268042,1718206246895,-1355.61945113,0.00018,2]
[329268044,1718206246906,-876.82850055,0.00018,2]
[329268046,1718206246916,-2765.44251206,0.00018,2]
[329268048,1718206246945,-476.69963654,0.00018,2]
[329268050,1718206246955,-1036.68456979,0.00018,2]
[329268052,1718206246966,-204.17791001,0.00018,2]
[329268054,1718206246977,-1000.0,0.00018,2]
[329268056,1718206246988,-500.0,0.0001808,2]
[329268058,1718206246999,-500.0,0.0001808,2]
[329268060,1718206247009,-500.0,0.0001808,2]
[329268062,1718206247020,-500.0,0.0001808,2]
[329268064,1718206247031,-695.41,0.0001808,2]
[329268066,1718206247041,-665.41,0.0001808,2]
[329268068,1718206247054,-500.0,0.0001808,2]
[329268070,1718206247064,-1164.09,0.0001808,2]
[329268072,1718206247075,-699.97,0.0001808,2]
[329268074,1718206247086,-2132.65,0.0001808,2]
[329268076,1718206247096,-1144.97,0.0001808,2]
[329268078,1718206247106,-500.0,0.0001808,2]
[329268080,1718206247117,-500.0,0.0001808,2]
[329268082,1718206247127,-500.0,0.0001808,2]
[329268084,1718206247137,-500.0,0.00018081,2]
[329268086,1718206247148,-500.0,0.00018081,4]
[329268088,1718206247158,-3181.85,0.00018081,2]
[329268090,1718206247169,-500.0,0.00018081,2]
[329268092,1718206247179,-500.0,0.00018081,2]
[329268094,1718206247189,-500.0,0.00018082,2]
[329268096,1718206247202,-500.0,0.00018082,2]
[329268098,1718206247213,-500.0,0.00018082,2]
[329268100,1718206247223,-500.0,0.00018082,2]
[329268102,1718206247233,-772.3,0.00018082,2]
[329268104,1718206247244,-506.9,0.00018082,2]
[329268107,1718206247255,-5607.12,0.00018082,2]
[329268109,1718206247266,-503.71,0.00018082,2]
[329268111,1718206247277,-500.0,0.00018082,2]
[329268112,1718206247287,-7300.26,0.00018082,2]
[329268114,1718206247297,-500.0,0.00018082,2]
[329268117,1718206247309,-1170.2,0.00018082,2]
[329268119,1718206247319,-2295.26,0.00018082,2]
[329268120,1718206247329,-602.4,0.00018105,2]
[329268122,1718206247340,-152.9,0.00018105,2]
[329268124,1718206247350,-153.0,0.00018219,2]
[329268127,1718206247368,-153.0,0.00018219,2]
[329268129,1718206247378,-153.0,0.00018219,2]
[329268131,1718206247389,-264.65816161,0.00018254,2]
[329268133,1718206247401,-399.39067,0.00018271,2]
[329268135,1718206247413,-345.163434,0.00018271,2]
[329268137,1718206247423,-169.270811,0.00018271,2]
[329268139,1718206247434,-172.581718,0.00018271,2]
[329268141,1718206247445,-297.828184,0.00018271,2]
[329268143,1718206247456,-172.581717,0.00018271,2]
[329268145,1718206247466,-345.163434,0.00018271,2]
[329268147,1718206247478,-399.39067,0.00018271,2]
[329268149,1718206247491,-399.39067,0.00018271,2]
[329268151,1718206247506,-345.163435,0.00018271,2]
[329268153,1718206247518,-602.4,0.00018315,2]
[329268155,1718206247529,-152.9,0.00018315,2]
[329268157,1718206247541,-500.0,0.00018354,2]
[329268159,1718206247555,-500.0,0.00018354,2]
[329268161,1718206247565,-500.0,0.00018354,2]
[329268163,1718206247575,-500.0,0.00018354,2]
[329268165,1718206247586,-695.41,0.00018354,2]
[329268167,1718206247596,-665.41,0.00018354,2]
[329268169,1718206247607,-500.0,0.00018354,2]
[329268171,1718206247617,-1164.09,0.00018354,2]
[329268173,1718206247628,-699.97,0.00018354,2]
[329268175,1718206247640,-2132.65,0.00018354,2]
[329268177,1718206247652,-1144.97,0.00018354,2]
[329268179,1718206247663,-500.0,0.00018354,2]
[329268183,1718206247675,-500.0,0.00018354,2]
[329268185,1718206247685,-500.0,0.00018354,2]
[329268188,1718206247696,-266.64782108,0.00018355,2]
[329268191,1718206247707,-500.0,0.00018355,4]
[329268194,1718206247718,-3181.85,0.00018355,2]
[329268197,1718206247735,-507.44215869,0.00018355,2]
[329268199,1718206247749,-500.0,0.00018356,2]
[329268202,1718206247763,-500.0,0.00018356,2]
[329268206,1718206247774,-500.0,0.00018356,2]
[329268211,1718206247807,-500.0,0.00018356,2]
[329268214,1718206247819,-772.3,0.00018356,2]
[329268217,1718206247831,-506.9,0.00018356,2]
[329268220,1718206247845,-5607.12,0.00018356,2]
[329268223,1718206247861,-503.71,0.00018356,2]
[329268226,1718206247872,-500.0,0.00018356,2]
[329268228,1718206247884,-7300.26,0.00018356,2]
[329268231,1718206247895,-500.0,0.00018356,2]
[329268233,1718206247907,-1170.2,0.00018356,2]
[329268236,1718206247920,-2295.26,0.00018356,2]
[329268239,1718206247946,-150.0,0.00018429,2]
[329268240,1718206247957,-1750.0,0.00018429,2]
[329268243,1718206247968,-499.0,0.00018429,2]
[329268246,1718206247981,-345.163434,0.000185,2]
[329268249,1718206247994,-399.39067,0.000185,2]
[329268252,1718206248005,-172.581718,0.000185,2]
[329268254,1718206248015,-297.828184,0.000185,2]
[329268257,1718206248027,-172.581717,0.000185,2]
[329268260,1718206248042,-345.163434,0.000185,2]
[329268262,1718206248055,-399.39067,0.000185,2]
[329268265,1718206248067,-399.39067,0.000185,2]
[329268268,1718206248077,-345.163435,0.000185,2]
[329268270,1718206248087,-606.91207968,0.000185,2]
[329268273,1718206248098,-602.4,0.00018526,2]
[329268275,1718206248108,-152.9,0.00018526,2]
[329268278,1718206248127,-155.0,0.0001853,2]
[329268280,1718206248137,-500.0,0.00018549,2]
[329268282,1718206248147,-153.0,0.0001855,2]
[329268285,1718206248157,-166.666666,0.00018575,2]
[329268287,1718206248169,-500.0,0.00018628,2]
[329268290,1718206248179,-500.0,0.00018628,2]
[329268292,1718206248189,-500.0,0.00018628,2]
[329268295,1718206248199,-500.0,0.00018628,2]
[329268297,1718206248210,-695.41,0.00018628,2]
[329268301,1718206248225,-665.41,0.00018628,2]
[329268304,1718206248235,-500.0,0.00018628,2]
[329268306,1718206248246,-1164.09,0.00018628,2]
[329268309,1718206248256,-699.97,0.00018628,2]
[329268311,1718206248265,-2132.65,0.00018628,2]
[329268314,1718206248276,-1144.97,0.00018628,2]
[329268316,1718206248287,-500.0,0.00018628,2]
[329268318,1718206248298,-500.0,0.00018628,2]
[329268320,1718206248310,-500.0,0.00018628,2]
[329268322,1718206248319,-3181.85,0.00018629,2]
[329268324,1718206248336,-500.0,0.0001863,2]
[329268326,1718206248345,-500.0,0.0001863,2]
[329268328,1718206248355,-500.0,0.0001863,2]
[329268330,1718206248365,-500.0,0.0001863,2]
[329268332,1718206248375,-772.3,0.0001863,2]
[329268334,1718206248387,-506.9,0.0001863,2]
[329268336,1718206248400,-5607.12,0.0001863,2]
[329268338,1718206248411,-503.71,0.0001863,2]
[329268340,1718206248423,-500.0,0.0001863,2]
[329268354,1718206248574,-3917.9888343,0.0001863,2]
[329268366,1718206248691,-398.141,0.0001863,2]
[329268402,1718206249102,-500.0,0.00016438,2]
[329268404,1718206249113,-40.84954024,0.00016712,2]
[329268406,1718206249126,-459.15045976,0.00016712,2]
[329268408,1718206249136,-500.0,0.00016986,2]
[329268410,1718206249148,-500.0,0.0001726,2]
[329268412,1718206249159,-500.0,0.00017534,2]
[329268414,1718206249170,-153.0,0.00017728,2]
[329268416,1718206249180,-500.0,0.00017808,2]
[329268417,1718206249191,-500.0,0.00018082,2]
[329268419,1718206249201,-500.0,0.00018356,2]
[329268421,1718206249213,-2984.1301657,0.0001863,2]
[329268423,1718206249223,-500.0,0.0001863,2]
[329268425,1718206249234,-1170.2,0.0001863,2]
[329268427,1718206249244,-2295.26,0.0001863,2]
[329268429,1718206249254,-500.0,0.0001863,2]
[329268431,1718206249265,-250.0,0.0001863,2]
[329268432,1718206249282,-345.163434,0.00018728,2]
[329268434,1718206249297,-399.39067,0.00018728,2]
[329268436,1718206249323,-169.270811,0.00018728,2]
[329268438,1718206249337,-172.581718,0.00018728,2]
[329268441,1718206249348,-297.828184,0.00018728,2]
[329268443,1718206249360,-172.581717,0.00018728,2]
[329268444,1718206249370,-345.163434,0.00018728,2]
[329268446,1718206249381,-399.39067,0.00018728,2]
[329268448,1718206249391,-399.39067,0.00018728,2]
[329268451,1718206249403,-345.163435,0.00018728,2]
[329268453,1718206249415,-602.4,0.00018736,2]
[329268455,1718206249425,-152.9,0.00018736,2]
[329268457,1718206249436,-587.0,0.00018761,2]
[329268458,1718206249446,-264.65816161,0.00018802,2]
[329268460,1718206249456,-15867.27646993,0.00018804,2]
[329270158,1718206865391,1813.58589528,9.999e-05,2]
[329270159,1718207040583,1000.0,0.000266,120]
[329270214,1718207443703,-199.3500069,0.00015062,2]
[329270215,1718207443716,-217.3233004,0.00015125,2]
[329270217,1718207443731,-32.6766996,0.00015125,2]
[329270220,1718207443743,-254.4723272,0.00015125,2]
[329270222,1718207443755,-300.0,0.00015548,2]
[329270224,1718207443771,-116.6146167,0.0001555,2]
[329270227,1718207443844,-4249.07547811,0.0001555,2]
[329270228,1718207443859,-5168.29848319,0.0001555,2]
[329270229,1718207443871,-647.48532009,0.00016436,2]
[329270230,1718207443884,-246.45612783,0.00016436,2]
[329270231,1718207443896,-500.0,0.00016438,2]
[329270232,1718207443911,-500.0,0.00016438,2]
[329270233,1718207443923,-500.0,0.00016438,2]
[329270234,1718207443934,-500.0,0.00016438,2]
[329270235,1718207443944,-500.0,0.00016438,4]
[329270236,1718207443958,-500.0,0.00016438,2]
[329270237,1718207443970,-500.0,0.00016438,2]
[329270238,1718207443986,-500.0,0.00016438,2]
[329270239,1718207444005,-500.0,0.00016438,2]
[329270240,1718207444028,-500.0,0.00016438,2]
[329270241,1718207444073,-500.0,0.00016438,2]
[329270242,1718207444124,-500.0,0.00016438,2]
[329270243,1718207444173,-500.0,0.00016438,2]
[329270244,1718207444186,-247.73006924,0.00016438,2]
[329270245,1718207444200,-500.0,0.00016438,2]
[329270246,1718207444220,-500.0,0.00016438,2]
[329270247,1718207444236,-500.0,0.00016438,2]
[329270248,1718207444253,-500.0,0.00016438,2]
[329270249,1718207444265,-500.0,0.00016438,2]
[329270250,1718207444284,-353.05285413,0.00016438,2]
[329270251,1718207444297,-500.0,0.00016438,2]
[329270252,1718207444318,-500.0,0.00016438,2]
[329270253,1718207444345,-500.0,0.00016438,2]
[329270254,1718207444360,-500.0,0.00016438,2]
[329270255,1718207444376,-615.18,0.00016438,2]
[329270256,1718207444388,-500.0,0.00016438,2]
[329270257,1718207444400,-500.0,0.00016438,2]
[329270258,1718207444424,-500.0,0.00016438,2]
[329270259,1718207444465,-500.0,0.00016438,2]
[329270260,1718207444483,-500.0,0.00016438,2]
[329270261,1718207444512,-532.69703424,0.00016438,2]
[329270262,1718207444531,-503.78921423,0.00016438,2]
[329270263,1718207444551,-500.0,0.00016438,2]
[329270264,1718207444562,-500.0,0.00016438,2]
[329270265,1718207444574,-554.03,0.00016438,2]
[329270266,1718207444584,-540.21,0.00016438,2]
[329270267,1718207444604,-815.64,0.00016438,2]
[329270268,1718207444618,-500.0,0.00016438,2]
[329270269,1718207444629,-864.36,0.00016438,2]
[329270270,1718207444656,-838.68,0.00016438,2]
[329270271,1718207444681,-2290.99,0.00016438,2]
[329270272,1718207444696,-1422.34,0.00016438,2]
[329270273,1718207444711,-500.0,0.00016438,2]
[329270274,1718207444725,-638.48058846,0.00016438,2]
[329270275,1718207444747,-500.0,0.00016438,2]
[329270276,1718207444769,-500.0,0.00016438,2]
[329270277,1718207444785,-500.0,0.00016438,2]
[329270278,1718207444796,-500.0,0.00016438,2]
[329270279,1718207444810,-500.0,0.00016438,2]
[329270280,1718207444836,-2870.23,0.00016438,2]
[329270281,1718207444846,-8261.16,0.00016438,2]
[329270282,1718207444857,-1246.36,0.00016438,2]
[329270283,1718207444868,-500.0,0.00016438,2]
[329270284,1718207444879,-564.05,0.00016438,2]
[329270285,1718207444890,-236.39273435,0.00016438,2]
[329270286,1718207444900,-500.0,0.00016438,2]
[329270287,1718207444911,-635.06,0.00016438,2]
[329270288,1718207444923,-2540.47,0.00016438,2]
[329270289,1718207444935,-500.0,0.00016438,2]
[329270290,1718207444946,-500.0,0.00016438,2]
[329270291,1718207444957,-4312.23,0.00016438,2]
[329270292,1718207444971,-6086.89,0.00016438,2]
[329270293,1718207444986,-500.0,0.00016438,2]
[329270294,1718207445000,-500.0,0.00016438,2]
[329270295,1718207445012,-500.0,0.00016438,2]
[329270297,1718207445042,-500.0,0.00016438,2]
[329270299,1718207445059,-500.0,0.00016438,2]
[329270301,1718207445097,-500.0,0.00016438,2]
[329270304,1718207445116,-500.0,0.00016438,2]
[329270306,1718207445129,-500.0,0.00016438,2]
[329270307,1718207445143,-500.0,0.00016438,2]
[329270309,1718207445154,-500.0,0.00016438,2]
[329270311,1718207445166,-500.0,0.00016438,2]
[329270313,1718207445192,-500.0,0.00016438,2]
[329270316,1718207445229,-500.0,0.00016438,2]
[329270319,1718207445252,-500.0,0.00016438,2]
[329270320,1718207445267,-500.0,0.00016438,2]
[329270322,1718207445282,-833.6,0.00016438,2]
[329270324,1718207445292,-500.0,0.00016438,2]
[329270326,1718207445304,-500.0,0.00016438,2]
[329270328,1718207445331,-500.0,0.00016438,2]
[329270330,1718207445343,-500.0,0.00016438,2]
[329270332,1718207445357,-500.0,0.00016438,2]
[329270334,1718207445367,-500.0,0.00016438,2]
[329270336,1718207445378,-1324.84,0.00016438,2]
[329270338,1718207445389,-500.0,0.00016438,2]
[329270340,1718207445400,-500.0,0.00016438,2]
[329270341,1718207445410,-500.0,0.00016711,2]
[329270342,1718207445420,-500.0,0.00016711,2]
[329270343,1718207445430,-500.0,0.00016712,2]
[329270344,1718207445446,-500.0,0.00016712,2]
[329270345,1718207445457,-500.0,0.00016712,2]
[329270346,1718207445470,-500.0,0.00016712,2]
[329270347,1718207445482,-500.0,0.00016712,4]
[329270348,1718207445496,-500.0,0.00016712,2]
[329270349,1718207445507,-500.0,0.00016712,2]
[329270350,1718207445522,-500.0,0.00016712,2]
[329270351,1718207445532,-500.0,0.00016712,2]
[329270352,1718207445542,-500.0,0.00016712,2]
[329270353,1718207445555,-500.0,0.00016712,2]
[329270354,1718207445565,-500.0,0.00016712,2]
[329270355,1718207445576,-500.0,0.00016712,2]
[329270356,1718207445586,-500.0,0.00016712,2]
[329270357,1718207445600,-615.18,0.00016712,2]
[329270358,1718207445609,-500.0,0.00016712,2]
[329270359,1718207445621,-500.0,0.00016712,2]
[329270360,1718207445631,-500.0,0.00016712,2]
[329270361,1718207445644,-500.0,0.00016712,2]
[329270362,1718207445655,-554.03,0.00016712,2]
[329270363,1718207445668,-540.21,0.00016712,2]
[329270364,1718207445679,-815.64,0.00016712,2]
[329270365,1718207445689,-500.0,0.00016712,2]
[329270366,1718207445699,-864.36,0.00016712,2]
[329270367,1718207445716,-838.68,0.00016712,2]
[329270368,1718207445727,-2290.99,0.00016712,2]
[329270369,1718207445741,-1422.34,0.00016712,2]
[329270370,1718207445752,-500.0,0.00016712,2]
[329270371,1718207445764,-500.0,0.00016712,2]
[329270372,1718207445775,-500.0,0.00016712,2]
[329270373,1718207445787,-553.99,0.00016712,2]
[329270374,1718207445812,-302.61382712,0.00016712,2]
[329270375,1718207445837,-2870.23,0.00016712,2]
[329270376,1718207445862,-8261.16,0.00016712,2]
[329270377,1718207445877,-1246.36,0.00016712,2]
[329270378,1718207445898,-335.72000077,0.00016712,2]
[329270379,1718207445913,-564.05,0.00016712,2]
[329270380,1718207445925,-500.0,0.00016712,2]
[329270381,1718207445945,-635.06,0.00016712,2]
[329270382,1718207445962,-2540.47,0.00016712,2]
[329270383,1718207445978,-500.0,0.00016712,2]
[329270384,1718207445999,-500.0,0.00016712,2]
[329270385,1718207446021,-4312.23,0.00016712,2]
[329270386,1718207446033,-6086.89,0.00016712,2]
[329270387,1718207446046,-500.0,0.00016712,2]
[329270388,1718207446065,-500.0,0.00016712,2]
[329270389,1718207446084,-500.0,0.00016712,2]
[329270390,1718207446098,-500.0,0.00016712,2]
[329270391,1718207446116,-500.0,0.00016712,2]
[329270392,1718207446135,-500.0,0.00016712,2]
[329270393,1718207446153,-500.0,0.00016712,2]
[329270394,1718207446179,-500.0,0.00016712,2]
[329270395,1718207446194,-833.6,0.00016712,2]
[329270396,1718207446213,-500.0,0.00016712,2]
[329270397,1718207446251,-500.0,0.00016712,2]
[329270398,1718207446269,-500.0,0.00016712,2]
[329270399,1718207446282,-500.0,0.00016712,2]
[329270400,1718207446297,-1324.84,0.00016712,2]
[329270401,1718207446313,-486.59590013,0.00016886,2]
[329270402,1718207446337,-500.0,0.00016985,2]
[329270403,1718207446351,-500.0,0.00016986,2]
[329270404,1718207446367,-500.0,0.00016986,2]
[329270405,1718207446380,-500.0,0.00016986,2]
[329270406,1718207446400,-500.0,0.00016986,4]
[329270407,1718207446416,-500.0,0.00016986,2]
[329270408,1718207446430,-500.0,0.00016986,2]
[329270409,1718207446455,-524.93996593,0.00016986,2]
[329270410,1718207446477,-500.0,0.00016986,2]
[329270411,1718207446495,-500.0,0.00016986,2]
[329270412,1718207446513,-500.0,0.00016986,2]
[329270413,1718207446544,-500.0,0.00016986,2]
[329270414,1718207446567,-500.0,0.00016986,2]
[329270415,1718207446582,-500.0,0.00016986,2]
[329270416,1718207446601,-615.18,0.00016986,2]
[329270417,1718207446624,-212.199759,0.00016986,2]
[329270418,1718207446647,-302.97965784,0.00016986,2]
[329270419,1718207446673,-500.0,0.00016986,2]
[329270420,1718207446686,-500.0,0.00016986,2]
[329270421,1718207446709,-554.03,0.00016986,2]
[329270422,1718207446727,-540.21,0.00016986,2]
[329270423,1718207446740,-815.64,0.00016986,2]
[329270424,1718207446753,-500.0,0.00016986,2]
[329270425,1718207446766,-864.36,0.00016986,2]
[329270426,1718207446779,-838.68,0.00016986,2]
[329270427,1718207446792,-2290.99,0.00016986,2]
[329270428,1718207446805,-1422.34,0.00016986,2]
[329270429,1718207446818,-500.0,0.00016986,2]
[329270430,1718207446829,-500.0,0.00016986,2]
[329270431,1718207446841,-350.05257528,0.00016986,2]
[329270432,1718207446855,-2870.23,0.00016986,2]
[329270433,1718207446866,-8261.16,0.00016986,2]
[329270434,1718207446876,-1246.36,0.00016986,2]
[329270435,1718207446888,-564.05,0.00016986,2]
[329270436,1718207446900,-500.0,0.00016986,2]
[329270437,1718207446912,-635.06,0.00016986,2]
[329270438,1718207446924,-2540.47,0.00016986,2]
[329270439,1718207446936,-500.0,0.00016986,2]
[329270440,1718207446948,-500.0,0.00016986,2]
[329270441,1718207446964,-4312.23,0.00016986,2]
[329270442,1718207446974,-6086.89,0.00016986,2]
[329270443,1718207446986,-500.0,0.00016986,2]
[329270444,1718207447000,-500.0,0.00016986,2]
[329270445,1718207447012,-500.0,0.00016986,2]
[329270446,1718207447023,-500.0,0.00016986,2]
[329270447,1718207447039,-500.0,0.00016986,2]
[329270448,1718207447054,-500.0,0.00016986,2]
[329270449,1718207447066,-833.6,0.00016986,2]
[329270450,1718207447078,-500.0,0.00016986,2]
[329270451,1718207447089,-500.0,0.00016986,2]
[329270452,1718207447099,-500.0,0.00016986,2]
[329270453,1718207447110,-500.0,0.00016986,2]
[329270454,1718207447120,-1324.84,0.00016986,2]
[329270455,1718207447131,-270.0,0.00017103,2]
[329270456,1718207447143,-500.0,0.00017259,2]
[329270457,1718207447156,-500.0,0.0001726,2]
[329270458,1718207447167,-353.17325314,0.0001726,2]
[329270459,1718207447179,-500.0,0.0001726,2]
[329270460,1718207447190,-500.0,0.0001726,4]
[329270461,1718207447201,-500.0,0.0001726,2]
[329270462,1718207447213,-500.0,0.0001726,2]
[329270463,1718207447228,-500.0,0.0001726,2]
[329270464,1718207447239,-500.0,0.0001726,2]
[329270465,1718207447251,-500.0,0.0001726,2]
[329270466,1718207447263,-500.0,0.0001726,2]
[329270467,1718207447276,-500.0,0.0001726,2]
[329270468,1718207447289,-500.0,0.0001726,2]
[329270469,1718207447302,-615.18,0.0001726,2]
[329270470,1718207447328,-500.0,0.0001726,2]
[329270471,1718207447342,-500.0,0.0001726,2]
[329270472,1718207447354,-554.03,0.0001726,2]
[329270473,1718207447366,-540.21,0.0001726,2]
[329270474,1718207447380,-815.64,0.0001726,2]
[329270475,1718207447401,-500.0,0.0001726,2]
[329270476,1718207447428,-864.36,0.0001726,2]
[329270477,1718207447449,-838.68,0.0001726,2]
[329270478,1718207447462,-2290.99,0.0001726,2]
[329270479,1718207447475,-1422.34,0.0001726,2]
[329270480,1718207447499,-500.0,0.0001726,2]
[329270481,1718207447513,-500.0,0.0001726,2]
[329270482,1718207447544,-2870.23,0.0001726,2]
[329270483,1718207447555,-8261.16,0.0001726,2]
[329270484,1718207447567,-1246.36,0.0001726,2]
[329270485,1718207447579,-564.05,0.0001726,2]
[329270486,1718207447590,-500.0,0.0001726,2]
[329270487,1718207447602,-2540.47,0.0001726,2]
[329270488,1718207447623,-635.06,0.0001726,2]
[329270489,1718207447635,-500.0,0.0001726,2]
[329270490,1718207447648,-500.0,0.0001726,2]
[329270491,1718207447663,-4312.23,0.0001726,2]
[329270492,1718207447674,-6086.89,0.0001726,2]
[329270495,1718207447686,-500.0,0.0001726,2]
[329270497,1718207447698,-500.0,0.0001726,2]
[329270499,1718207447712,-500.0,0.0001726,2]
[329270501,1718207447732,-500.0,0.0001726,2]
[329270503,1718207447745,-833.6,0.0001726,2]
[329270505,1718207447757,-500.0,0.0001726,2]
[329270508,1718207447769,-500.0,0.0001726,2]
[329270510,1718207447782,-500.0,0.0001726,2]
[329270511,1718207447794,-500.0,0.0001726,2]
[329270513,1718207447808,-1324.84,0.0001726,2]
[329270514,1718207447820,-486.59590012,0.0001739,2]
[329270515,1718207447833,-500.0,0.00017533,2]
[329270516,1718207447846,-500.0,0.00017534,2]
[329270517,1718207447859,-500.0,0.00017534,2]
[329270518,1718207447871,-500.0,0.00017534,4]
[329270519,1718207447882,-500.0,0.00017534,2]
[329270520,1718207447900,-500.0,0.00017534,2]
[329270521,1718207447928,-500.0,0.00017534,2]
[329270522,1718207447942,-500.0,0.00017534,2]
[329270523,1718207447954,-500.0,0.00017534,2]
[329270524,1718207447966,-615.18,0.00017534,2]
[329270525,1718207447983,-500.0,0.00017534,2]
[329270526,1718207447995,-500.0,0.00017534,2]
[329270527,1718207448020,-554.03,0.00017534,2]
[329270528,1718207448032,-540.21,0.00017534,2]
[329270529,1718207448054,-815.64,0.00017534,2]
[329270530,1718207448069,-500.0,0.00017534,2]
[329270531,1718207448092,-864.36,0.00017534,2]
[329270532,1718207448110,-838.68,0.00017534,2]
[329270533,1718207448124,-2290.99,0.00017534,2]
[329270534,1718207448135,-1422.34,0.00017534,2]
[329270535,1718207448156,-500.0,0.00017534,2]
[329270536,1718207448169,-500.0,0.00017534,2]
[329270537,1718207448181,-2870.23,0.00017534,2]
[329270538,1718207448194,-8261.16,0.00017534,2]
[329270539,1718207448207,-1246.36,0.00017534,2]
[329270540,1718207448225,-564.05,0.00017534,2]
[329270541,1718207448238,-500.0,0.00017534,2]
[329270542,1718207448259,-2540.47,0.00017534,2]
[329270543,1718207448274,-635.06,0.00017534,2]